[Event "Late-Titled-Tuesday-Blitz-April-30-2024"]
[Site "Chess.com"]
[Date "2024.04.30"]
[Round "7"]
[White "baki83"]
[Black "Ajedrez_con_German"]
[Result "1-0"]
[WhiteElo "2899"]
[BlackElo "2630"]
[TimeControl "180+1"]
[EndTime "15:16:33 PDT"]
[Termination "baki83 won by resignation"]

1. e4 {[%clk 0:02:59]} 1... a6 {[%clk 0:02:42.7]} 2. d4 {[%clk 0:02:58.6]} 2...
e6 {[%clk 0:02:42.9]} 3. Bd3 {[%clk 0:02:58.4]} 3... d5 {[%clk 0:02:42.4]} 4.
exd5 {[%clk 0:02:57.6]} 4... exd5 {[%clk 0:02:42.2]} 5. Nf3 {[%clk 0:02:58]}
5... Nf6 {[%clk 0:02:35.1]} 6. O-O {[%clk 0:02:57.2]} 6... Be7 {[%clk
0:02:34.7]} 7. h3 {[%clk 0:02:55]} 7... O-O {[%clk 0:02:34]} 8. Re1 {[%clk
0:02:55]} 8... h6 {[%clk 0:02:26.1]} 9. Bf4 {[%clk 0:02:51.4]} 9... Nc6 {[%clk
0:02:23.1]} 10. c3 {[%clk 0:02:49.9]} 10... Re8 {[%clk 0:02:20.5]} 11. Nbd2
{[%clk 0:02:48.9]} 11... Bd6 {[%clk 0:02:20.4]} 12. Ne5 {[%clk 0:02:40.5]} 12...
Ne7 {[%clk 0:02:17.5]} 13. Qc2 {[%clk 0:02:30.2]} 13... c5 {[%clk 0:02:03.8]}
14. dxc5 {[%clk 0:02:18.4]} 14... Bxc5 {[%clk 0:02:03.8]} 15. Re2 {[%clk
0:02:18.8]} 15... Nc6 {[%clk 0:01:58.7]} 16. Rae1 {[%clk 0:02:17.3]} 16... Be6
{[%clk 0:01:52.9]} 17. Ndf3 {[%clk 0:02:05.5]} 17... Rc8 {[%clk 0:01:46.1]} 18.
Nxc6 {[%clk 0:02:00.1]} 18... Rxc6 {[%clk 0:01:42.8]} 19. Be5 {[%clk 0:01:23.9]}
19... Be7 {[%clk 0:01:24.5]} 20. Nd4 {[%clk 0:01:22.5]} 20... Rb6 {[%clk
0:01:16]} 21. Nxe6 {[%clk 0:01:02.8]} 21... fxe6 {[%clk 0:01:11.2]} 22. Bd4
{[%clk 0:00:58]} 22... Rc6 {[%clk 0:01:01.8]} 23. Rxe6 {[%clk 0:00:56.9]} 23...
Rxe6 {[%clk 0:00:59.2]} 24. Rxe6 {[%clk 0:00:57.8]} 24... Bf8 {[%clk 0:00:52.5]}
25. Bxf6 {[%clk 0:00:48.1]} 25... gxf6 {[%clk 0:00:46.8]} 26. Bh7+ {[%clk
0:00:46.5]} 26... Kh8 {[%clk 0:00:46.3]} 27. Qg6 {[%clk 0:00:43.8]} 27... Be7
{[%clk 0:00:32.2]} 28. Bg8 {[%clk 0:00:36.7]} 1-0

[Event "Late-Titled-Tuesday-Blitz-April-30-2024"]
[Site "Chess.com"]
[Date "2024.04.30"]
[Round "7"]
[White "luggevoila"]
[Black "e4evr"]
[Result "0-1"]
[WhiteElo "2330"]
[BlackElo "2224"]
[TimeControl "180+1"]
[EndTime "15:16:40 PDT"]
[Termination "e4evr won by resignation"]

1. e4 {[%clk 0:03:00.9]} 1... c5 {[%clk 0:02:59]} 2. Nc3 {[%clk 0:03:00.6]} 2...
Nc6 {[%clk 0:02:57.9]} 3. Bb5 {[%clk 0:03:00.6]} 3... Nd4 {[%clk 0:02:57]} 4.
Nf3 {[%clk 0:03:01.1]} 4... a6 {[%clk 0:02:55.5]} 5. Bd3 {[%clk 0:02:58.3]} 5...
g6 {[%clk 0:02:53.2]} 6. Nxd4 {[%clk 0:02:54.3]} 6... cxd4 {[%clk 0:02:52.7]} 7.
Ne2 {[%clk 0:02:54.9]} 7... Bg7 {[%clk 0:02:53.3]} 8. O-O {[%clk 0:02:53.5]}
8... d6 {[%clk 0:02:46.7]} 9. c3 {[%clk 0:02:53.6]} 9... dxc3 {[%clk 0:02:45.8]}
10. dxc3 {[%clk 0:02:53.8]} 10... Nf6 {[%clk 0:02:45.8]} 11. h3 {[%clk
0:02:52.1]} 11... O-O {[%clk 0:02:43]} 12. a4 {[%clk 0:02:52.1]} 12... b6 {[%clk
0:02:41]} 13. Be3 {[%clk 0:02:52.1]} 13... Bb7 {[%clk 0:02:38.3]} 14. Qb1 {[%clk
0:02:39.8]} 14... Nd7 {[%clk 0:02:37.6]} 15. Rd1 {[%clk 0:02:22.5]} 15... Qc7
{[%clk 0:02:34.7]} 16. Bc2 {[%clk 0:02:01.1]} 16... Ne5 {[%clk 0:02:32.1]} 17.
b3 {[%clk 0:01:55.1]} 17... Rfc8 {[%clk 0:02:24.3]} 18. Bd4 {[%clk 0:01:49]}
18... Bh6 {[%clk 0:02:16.9]} 19. Qb2 {[%clk 0:01:41.6]} 19... Nc6 {[%clk
0:02:16.5]} 20. Be3 {[%clk 0:01:30.7]} 20... Bg7 {[%clk 0:02:15.8]} 21. Rac1
{[%clk 0:01:23]} 21... b5 {[%clk 0:02:07.5]} 22. axb5 {[%clk 0:01:09.4]} 22...
axb5 {[%clk 0:02:06.9]} 23. Qb1 {[%clk 0:00:53.6]} 23... b4 {[%clk 0:01:58.2]}
24. Bd2 {[%clk 0:00:34.4]} 24... Qb6 {[%clk 0:01:47.8]} 25. Bd3 {[%clk
0:00:30.3]} 25... Ne5 {[%clk 0:01:45.2]} 26. cxb4 {[%clk 0:00:26.4]} 26... Rxc1
{[%clk 0:01:37.6]} 27. Rxc1 {[%clk 0:00:23.4]} 27... Ra1 {[%clk 0:01:25.1]} 28.
Qc2 {[%clk 0:00:23.4]} 28... Nxd3 {[%clk 0:01:21.4]} 29. Qxd3 {[%clk 0:00:19]}
29... Ba6 {[%clk 0:01:15]} 30. Rxa1 {[%clk 0:00:13.5]} 30... Bxa1 {[%clk
0:01:05.8]} 31. Qf3 {[%clk 0:00:11.4]} 31... Qc6 {[%clk 0:00:53.4]} 32. Nd4
{[%clk 0:00:07.5]} 32... Bxd4 {[%clk 0:00:52.7]} 0-1

[Event "Late-Titled-Tuesday-Blitz-April-30-2024"]
[Site "Chess.com"]
[Date "2024.04.30"]
[Round "7"]
[White "WilsonPalencia21"]
[Black "osielchesslover2011"]
[Result "1-0"]
[WhiteElo "2526"]
[BlackElo "2235"]
[TimeControl "180+1"]
[EndTime "15:16:41 PDT"]
[Termination "WilsonPalencia21 won by resignation"]

1. d4 {[%clk 0:03:00.9]} 1... Nf6 {[%clk 0:02:59.7]} 2. c4 {[%clk 0:02:59.7]}
2... g6 {[%clk 0:03:00.1]} 3. Nf3 {[%clk 0:02:59.8]} 3... Bg7 {[%clk 0:03:01]}
4. Nc3 {[%clk 0:02:59.2]} 4... O-O {[%clk 0:03:01.9]} 5. e4 {[%clk 0:02:59.1]}
5... d6 {[%clk 0:03:02.6]} 6. Be2 {[%clk 0:02:58.8]} 6... e5 {[%clk 0:03:03.1]}
7. O-O {[%clk 0:02:56.1]} 7... Nc6 {[%clk 0:03:03.6]} 8. d5 {[%clk 0:02:56.1]}
8... Ne7 {[%clk 0:03:03.5]} 9. Ne1 {[%clk 0:02:56.4]} 9... Nd7 {[%clk
0:03:03.4]} 10. Nd3 {[%clk 0:02:56.8]} 10... f5 {[%clk 0:03:03.8]} 11. Bd2
{[%clk 0:02:56.9]} 11... f4 {[%clk 0:03:02.3]} 12. f3 {[%clk 0:02:56.5]} 12...
g5 {[%clk 0:03:01.6]} 13. Rc1 {[%clk 0:02:56.3]} 13... Ng6 {[%clk 0:03:02.2]}
14. h3 {[%clk 0:02:54.5]} 14... Nf6 {[%clk 0:03:01.7]} 15. c5 {[%clk 0:02:54.6]}
15... h5 {[%clk 0:03:01.6]} 16. cxd6 {[%clk 0:02:55.2]} 16... cxd6 {[%clk
0:03:01.9]} 17. Nf2 {[%clk 0:02:56.1]} 17... Nh4 {[%clk 0:02:54.2]} 18. Nb5
{[%clk 0:02:50.9]} 18... Rf7 {[%clk 0:02:50.4]} 19. Qb3 {[%clk 0:02:49.6]} 19...
Bf8 {[%clk 0:02:28.8]} 20. Rc2 {[%clk 0:02:44.4]} 20... Rg7 {[%clk 0:02:26.5]}
21. Rfc1 {[%clk 0:02:41]} 21... g4 {[%clk 0:02:13.9]} 22. hxg4 {[%clk
0:02:37.4]} 22... hxg4 {[%clk 0:02:14.8]} 23. fxg4 {[%clk 0:02:37.6]} 23... Nxg4
{[%clk 0:02:13.6]} 24. Nxg4 {[%clk 0:02:35.8]} 24... Bxg4 {[%clk 0:02:13.1]} 25.
Bxg4 {[%clk 0:02:35.3]} 25... Rxg4 {[%clk 0:02:14]} 26. Be1 {[%clk 0:02:34.1]}
26... Qg5 {[%clk 0:01:41.8]} 27. Qh3 {[%clk 0:02:24.9]} 27... Bh6 {[%clk
0:00:40.1]} 28. Bxh4 {[%clk 0:02:17.6]} 28... Rxh4 {[%clk 0:00:37.1]} 29. Qe6+
{[%clk 0:02:12.7]} 29... Kh8 {[%clk 0:00:37.7]} 30. Rc8+ {[%clk 0:02:11.7]}
30... Rxc8 {[%clk 0:00:34]} 31. Rxc8+ {[%clk 0:02:12.6]} 31... Kh7 {[%clk
0:00:34.1]} 32. Qf7+ {[%clk 0:01:46.8]} 32... Bg7 {[%clk 0:00:33.8]} 33. Nxd6
{[%clk 0:01:37]} 33... Rg4 {[%clk 0:00:16]} 34. Qg8+ {[%clk 0:01:25.7]} 34...
Kg6 {[%clk 0:00:14.9]} 35. Qe6+ {[%clk 0:01:21.1]} 35... Kh5 {[%clk 0:00:09.2]}
36. Qf7+ {[%clk 0:01:14.6]} 36... Kh4 {[%clk 0:00:08.8]} 37. Nf5+ {[%clk
0:01:13.3]} 1-0

[Event "Late-Titled-Tuesday-Blitz-April-30-2024"]
[Site "Chess.com"]
[Date "2024.04.30"]
[Round "7"]
[White "BeautiFullMindChess"]
[Black "tolimachess"]
[Result "1-0"]
[WhiteElo "2254"]
[BlackElo "2417"]
[TimeControl "180+1"]
[EndTime "15:16:42 PDT"]
[Termination "BeautiFullMindChess won by checkmate"]

1. e4 {[%clk 0:02:55.6]} 1... c5 {[%clk 0:02:58.8]} 2. Nf3 {[%clk 0:02:55.6]}
2... Nc6 {[%clk 0:02:51.8]} 3. Bb5 {[%clk 0:02:55.1]} 3... g6 {[%clk 0:02:46.6]}
4. O-O {[%clk 0:02:47.7]} 4... Bg7 {[%clk 0:02:45.9]} 5. Nc3 {[%clk 0:02:47.6]}
5... e6 {[%clk 0:02:46.1]} 6. Bxc6 {[%clk 0:02:46.4]} 6... bxc6 {[%clk
0:02:45.5]} 7. e5 {[%clk 0:02:46.8]} 7... d5 {[%clk 0:02:44.7]} 8. exd6 {[%clk
0:02:46.5]} 8... Nf6 {[%clk 0:02:43.4]} 9. d3 {[%clk 0:02:42.5]} 9... Qxd6
{[%clk 0:02:43.2]} 10. Re1 {[%clk 0:02:39.1]} 10... O-O {[%clk 0:02:41.7]} 11.
Ne5 {[%clk 0:02:39.2]} 11... Ba6 {[%clk 0:02:38.5]} 12. Bf4 {[%clk 0:02:36.2]}
12... Nd5 {[%clk 0:02:33.7]} 13. Ne4 {[%clk 0:02:23.3]} 13... Qc7 {[%clk
0:02:27.1]} 14. Bg3 {[%clk 0:01:28.9]} 14... Bxe5 {[%clk 0:02:24.7]} 15. Bxe5
{[%clk 0:01:28.3]} 15... Qxe5 {[%clk 0:02:24.3]} 16. Nxc5 {[%clk 0:01:29.2]}
16... Qxb2 {[%clk 0:02:20.4]} 17. Nxa6 {[%clk 0:00:57.2]} 17... Qb6 {[%clk
0:02:03.8]} 18. c4 {[%clk 0:00:57.2]} 18... Qxa6 {[%clk 0:02:02.5]} 19. cxd5
{[%clk 0:00:57.7]} 19... cxd5 {[%clk 0:02:01.9]} 20. h4 {[%clk 0:00:55.2]} 20...
h5 {[%clk 0:02:01]} 21. Re5 {[%clk 0:00:52.4]} 21... Rac8 {[%clk 0:01:52.6]} 22.
g4 {[%clk 0:00:49.3]} 22... hxg4 {[%clk 0:01:51.8]} 23. h5 {[%clk 0:00:49.2]}
23... Rc3 {[%clk 0:01:47]} 24. hxg6 {[%clk 0:00:44.3]} 24... f5 {[%clk
0:01:41.4]} 25. Qd2 {[%clk 0:00:33.3]} 25... Rc7 {[%clk 0:01:19.8]} 26. Qh6
{[%clk 0:00:23.3]} 26... Rf6 {[%clk 0:01:18.4]} 27. Rb1 {[%clk 0:00:20.3]} 27...
Qc8 {[%clk 0:01:17.1]} 28. Kg2 {[%clk 0:00:16.8]} 28... Rg7 {[%clk 0:01:16.7]}
29. Rh1 {[%clk 0:00:15.2]} 29... Rfxg6 {[%clk 0:00:40.2]} 30. Qh8+ {[%clk
0:00:14.5]} 30... Kf7 {[%clk 0:00:40.8]} 31. Qxc8 {[%clk 0:00:15.2]} 31... f4
{[%clk 0:00:40.9]} 32. Qd7+ {[%clk 0:00:14.7]} 32... Kf6 {[%clk 0:00:41.2]} 33.
Qxe6# {[%clk 0:00:13.9]} 1-0

[Event "Late-Titled-Tuesday-Blitz-April-30-2024"]
[Site "Chess.com"]
[Date "2024.04.30"]
[Round "7"]
[White "KebabJangles"]
[Black "Romadk"]
[Result "1-0"]
[WhiteElo "2328"]
[BlackElo "2493"]
[TimeControl "180+1"]
[EndTime "15:16:49 PDT"]
[Termination "KebabJangles won by checkmate"]

1. d4 {[%clk 0:03:00.9]} 1... Nf6 {[%clk 0:02:55.4]} 2. c4 {[%clk 0:03:00.6]}
2... e6 {[%clk 0:02:55.4]} 3. g3 {[%clk 0:02:58.9]} 3... d5 {[%clk 0:02:53.5]}
4. Bg2 {[%clk 0:02:59.8]} 4... dxc4 {[%clk 0:02:44.4]} 5. Nf3 {[%clk 0:03:00.7]}
5... c6 {[%clk 0:02:41.2]} 6. O-O {[%clk 0:03:01.6]} 6... b5 {[%clk 0:02:37]} 7.
Ne5 {[%clk 0:03:00.3]} 7... Nd5 {[%clk 0:02:36.7]} 8. e4 {[%clk 0:02:58.8]} 8...
Nb6 {[%clk 0:02:33.6]} 9. Nc3 {[%clk 0:02:57.5]} 9... Bb7 {[%clk 0:02:29.1]} 10.
Re1 {[%clk 0:02:50.6]} 10... Be7 {[%clk 0:02:24.9]} 11. d5 {[%clk 0:02:44.3]}
11... cxd5 {[%clk 0:02:21.8]} 12. exd5 {[%clk 0:02:44.3]} 12... Nxd5 {[%clk
0:02:15.6]} 13. Nxb5 {[%clk 0:02:33.1]} 13... Qb6 {[%clk 0:02:04.7]} 14. a4
{[%clk 0:02:28.1]} 14... a6 {[%clk 0:01:58.7]} 15. Nxc4 {[%clk 0:02:26.9]} 15...
Qc5 {[%clk 0:01:50.4]} 16. Nba3 {[%clk 0:02:25.6]} 16... O-O {[%clk 0:01:40.4]}
17. Ne3 {[%clk 0:02:09]} 17... Bf6 {[%clk 0:01:28]} 18. Nxd5 {[%clk 0:02:06]}
18... Bxd5 {[%clk 0:01:28.9]} 19. Bxd5 {[%clk 0:02:05.9]} 19... exd5 {[%clk
0:01:29.8]} 20. Be3 {[%clk 0:02:03.9]} 20... d4 {[%clk 0:01:21.4]} 21. Bf4
{[%clk 0:02:02.3]} 21... Nd7 {[%clk 0:01:15.6]} 22. Qd2 {[%clk 0:01:49.7]} 22...
Nb6 {[%clk 0:00:59.9]} 23. b4 {[%clk 0:01:29.9]} 23... Qd5 {[%clk 0:00:57.2]}
24. a5 {[%clk 0:01:27.3]} 24... Na4 {[%clk 0:00:49.6]} 25. Rac1 {[%clk 0:01:22]}
25... Rfd8 {[%clk 0:00:44.5]} 26. Nc4 {[%clk 0:01:14.6]} 26... Rac8 {[%clk
0:00:35.7]} 27. Nb6 {[%clk 0:01:07.6]} 27... Nxb6 {[%clk 0:00:34.7]} 28. axb6
{[%clk 0:01:08.5]} 28... Qb5 {[%clk 0:00:29.8]} 29. Bc7 {[%clk 0:01:05]} 29...
Re8 {[%clk 0:00:25]} 30. Rc5 {[%clk 0:00:58.4]} 30... Qd7 {[%clk 0:00:14]} 31.
b7 {[%clk 0:00:52.9]} 31... Rxc7 {[%clk 0:00:13.9]} 32. Rxe8+ {[%clk 0:00:51.8]}
32... Qxe8 {[%clk 0:00:14.8]} 33. Rxc7 {[%clk 0:00:52]} 33... Bd8 {[%clk
0:00:02.2]} 34. b8=Q {[%clk 0:00:50.2]} 34... Bxc7 {[%clk 0:00:01]} 35. Qxe8#
{[%clk 0:00:49.7]} 1-0

[Event "Late-Titled-Tuesday-Blitz-April-30-2024"]
[Site "Chess.com"]
[Date "2024.04.30"]
[Round "7"]
[White "Artem_Koval"]
[Black "pedroholly22"]
[Result "1-0"]
[WhiteElo "2543"]
[BlackElo "2450"]
[TimeControl "180+1"]
[EndTime "15:16:50 PDT"]
[Termination "Artem_Koval won by resignation"]

1. e4 {[%clk 0:03:00.9]} 1... c5 {[%clk 0:02:58.8]} 2. d4 {[%clk 0:02:59.7]}
2... cxd4 {[%clk 0:02:59.1]} 3. c3 {[%clk 0:03:00.1]} 3... dxc3 {[%clk
0:02:59.6]} 4. Nxc3 {[%clk 0:03:01]} 4... e6 {[%clk 0:03:00.3]} 5. Nf3 {[%clk
0:03:01.3]} 5... Nc6 {[%clk 0:03:00.3]} 6. Bc4 {[%clk 0:03:01.5]} 6... a6 {[%clk
0:02:59.9]} 7. O-O {[%clk 0:03:01.8]} 7... d6 {[%clk 0:02:59.6]} 8. Qe2 {[%clk
0:03:01.3]} 8... e5 {[%clk 0:02:50.4]} 9. Rd1 {[%clk 0:02:57.3]} 9... Be7 {[%clk
0:02:50.1]} 10. Nd5 {[%clk 0:02:48.4]} 10... Nf6 {[%clk 0:02:50]} 11. Nxe7
{[%clk 0:02:40.8]} 11... Qxe7 {[%clk 0:02:49.9]} 12. Bg5 {[%clk 0:02:41.5]}
12... h6 {[%clk 0:02:45.7]} 13. Bxf6 {[%clk 0:02:37]} 13... Qxf6 {[%clk
0:02:45.7]} 14. Qd2 {[%clk 0:02:36.9]} 14... Bg4 {[%clk 0:02:38]} 15. Qxd6
{[%clk 0:02:32.4]} 15... Qxd6 {[%clk 0:02:36.5]} 16. Rxd6 {[%clk 0:02:33.3]}
16... Bxf3 {[%clk 0:02:36.9]} 17. gxf3 {[%clk 0:02:33.5]} 17... Nd4 {[%clk
0:02:37.4]} 18. Kg2 {[%clk 0:02:33.1]} 18... O-O {[%clk 0:02:30.4]} 19. f4
{[%clk 0:02:28.6]} 19... Rac8 {[%clk 0:02:29]} 20. Bd5 {[%clk 0:02:21.9]} 20...
Nb5 {[%clk 0:02:27.4]} 21. Rd7 {[%clk 0:02:12.8]} 21... exf4 {[%clk 0:02:20.7]}
22. Bxb7 {[%clk 0:02:07.4]} 22... Rc2 {[%clk 0:02:20.4]} 23. Bxa6 {[%clk
0:02:07.3]} 23... Rxb2 {[%clk 0:02:20.7]} 24. a4 {[%clk 0:01:58.9]} 24... Nc3
{[%clk 0:02:18]} 25. Bb7 {[%clk 0:01:58.9]} 25... Rb8 {[%clk 0:02:03.9]} 26. Bd5
{[%clk 0:01:58.7]} 26... Nxd5 {[%clk 0:01:57.3]} 27. exd5 {[%clk 0:01:59.6]}
27... Rd2 {[%clk 0:01:51.9]} 28. a5 {[%clk 0:01:24.8]} 28... Rbb2 {[%clk
0:01:42.7]} 29. Kf3 {[%clk 0:01:24.5]} 29... Rxf2+ {[%clk 0:01:38.2]} 30. Ke4
{[%clk 0:01:24.6]} 30... Ra2 {[%clk 0:01:32.9]} 31. Rxa2 {[%clk 0:01:21.5]}
31... Rxa2 {[%clk 0:01:33.8]} 32. Ra7 {[%clk 0:01:21.8]} 32... Kf8 {[%clk
0:01:31.8]} 33. d6 {[%clk 0:01:18.2]} 33... Ke8 {[%clk 0:01:32.3]} 34. Kxf4
{[%clk 0:01:17.1]} 34... Rxh2 {[%clk 0:01:17.3]} 35. a6 {[%clk 0:01:16.6]} 35...
Ra2 {[%clk 0:01:17]} 36. Re7+ {[%clk 0:01:10]} 36... Kd8 {[%clk 0:01:13.1]} 37.
a7 {[%clk 0:01:08.8]} 37... Kc8 {[%clk 0:00:49.1]} 38. Rxf7 {[%clk 0:01:03.7]}
38... g5+ {[%clk 0:00:44.6]} 39. Kg4 {[%clk 0:00:56.7]} 39... Ra4+ {[%clk
0:00:43.7]} 40. Kh5 {[%clk 0:00:56.2]} 40... g4 {[%clk 0:00:43.6]} 41. a8=Q+
{[%clk 0:00:44.2]} 41... Rxa8 {[%clk 0:00:42.4]} 42. Rf8+ {[%clk 0:00:45.1]}
42... Kd7 {[%clk 0:00:42]} 43. Rxa8 {[%clk 0:00:46]} 43... Kxd6 {[%clk
0:00:42.5]} 44. Kxg4 {[%clk 0:00:46]} 1-0

[Event "Late-Titled-Tuesday-Blitz-April-30-2024"]
[Site "Chess.com"]
[Date "2024.04.30"]
[Round "7"]
[White "mortngabriel"]
[Black "dealshark"]
[Result "0-1"]
[WhiteElo "2492"]
[BlackElo "2317"]
[TimeControl "180+1"]
[EndTime "15:16:52 PDT"]
[Termination "dealshark won by resignation"]

1. e4 {[%clk 0:03:00.9]} 1... c6 {[%clk 0:02:56.2]} 2. d4 {[%clk 0:02:59]} 2...
d5 {[%clk 0:02:57.1]} 3. e5 {[%clk 0:02:59.4]} 3... c5 {[%clk 0:02:56.3]} 4. Nf3
{[%clk 0:02:59.6]} 4... cxd4 {[%clk 0:02:54]} 5. Qxd4 {[%clk 0:03:00.5]} 5...
Nc6 {[%clk 0:02:53.9]} 6. Qf4 {[%clk 0:03:00.1]} 6... e6 {[%clk 0:02:53]} 7. Bd3
{[%clk 0:02:59.1]} 7... Nb4 {[%clk 0:02:51]} 8. O-O {[%clk 0:02:50.3]} 8... Nxd3
{[%clk 0:02:49]} 9. cxd3 {[%clk 0:02:51.2]} 9... Ne7 {[%clk 0:02:24.9]} 10. Nc3
{[%clk 0:02:50.5]} 10... Ng6 {[%clk 0:02:23.3]} 11. Qg3 {[%clk 0:02:46.6]} 11...
Be7 {[%clk 0:02:22.2]} 12. Bg5 {[%clk 0:02:40.6]} 12... O-O {[%clk 0:02:21.4]}
13. h4 {[%clk 0:02:35.4]} 13... Bxg5 {[%clk 0:02:00]} 14. Nxg5 {[%clk
0:02:33.2]} 14... Bd7 {[%clk 0:01:40.2]} 15. h5 {[%clk 0:02:06.2]} 15... Nxe5
{[%clk 0:01:27.4]} 16. Nxe6 {[%clk 0:01:32.6]} 16... fxe6 {[%clk 0:01:24.4]} 17.
Qxe5 {[%clk 0:01:32.6]} 17... Rf5 {[%clk 0:01:24.3]} 18. Qe2 {[%clk 0:01:32.2]}
18... Qf6 {[%clk 0:01:21.6]} 19. Rad1 {[%clk 0:01:11.6]} 19... Rf8 {[%clk
0:01:20.8]} 20. Ne4 {[%clk 0:01:10.3]} 20... dxe4 {[%clk 0:01:13.3]} 21. dxe4
{[%clk 0:01:10.5]} 21... Bb5 {[%clk 0:01:14]} 22. Qe3 {[%clk 0:00:55.3]} 22...
Rxh5 {[%clk 0:01:01.7]} 23. Rfe1 {[%clk 0:00:53.5]} 23... Qh4 {[%clk 0:00:59.4]}
24. f3 {[%clk 0:00:52.5]} 24... Qg3 {[%clk 0:00:45.8]} 25. Qb3 {[%clk
0:00:37.2]} 25... Rh2 {[%clk 0:00:32.4]} 26. Qc2 {[%clk 0:00:21.2]} 26... Qh4
{[%clk 0:00:29.1]} 0-1

[Event "Late-Titled-Tuesday-Blitz-April-30-2024"]
[Site "Chess.com"]
[Date "2024.04.30"]
[Round "7"]
[White "Synctel"]
[Black "duone"]
[Result "0-1"]
[WhiteElo "2036"]
[BlackElo "2416"]
[TimeControl "180+1"]
[EndTime "15:16:55 PDT"]
[Termination "duone won on time"]

1. d4 {[%clk 0:03:00.9]} 1... Nf6 {[%clk 0:02:59.8]} 2. Nf3 {[%clk 0:02:55.4]}
2... g6 {[%clk 0:02:59.8]} 3. Bf4 {[%clk 0:02:52.6]} 3... Bg7 {[%clk 0:02:59.4]}
4. e3 {[%clk 0:02:52.9]} 4... O-O {[%clk 0:02:58.9]} 5. Be2 {[%clk 0:02:53.2]}
5... d5 {[%clk 0:02:58]} 6. O-O {[%clk 0:02:51.6]} 6... c5 {[%clk 0:02:55.6]} 7.
c3 {[%clk 0:02:51.1]} 7... Nc6 {[%clk 0:02:55.2]} 8. h3 {[%clk 0:02:49.1]} 8...
cxd4 {[%clk 0:02:55.2]} 9. exd4 {[%clk 0:02:47.9]} 9... Bf5 {[%clk 0:02:55.4]}
10. Nbd2 {[%clk 0:02:45.2]} 10... Ne4 {[%clk 0:02:55.3]} 11. Re1 {[%clk
0:02:39.2]} 11... Rc8 {[%clk 0:02:48.8]} 12. Nf1 {[%clk 0:02:20.5]} 12... f6
{[%clk 0:02:41.6]} 13. Bb5 {[%clk 0:02:03.4]} 13... Re8 {[%clk 0:02:26.6]} 14.
Bh2 {[%clk 0:01:56.8]} 14... a6 {[%clk 0:02:25.9]} 15. Bxc6 {[%clk 0:01:56.3]}
15... Rxc6 {[%clk 0:02:25.2]} 16. Ne3 {[%clk 0:01:37.9]} 16... Be6 {[%clk
0:02:12.4]} 17. Nd2 {[%clk 0:01:33.3]} 17... Nxd2 {[%clk 0:02:09.9]} 18. Qxd2
{[%clk 0:01:33.4]} 18... Bf7 {[%clk 0:02:10.6]} 19. Rad1 {[%clk 0:01:29.2]}
19... b5 {[%clk 0:02:06.4]} 20. f4 {[%clk 0:01:27.1]} 20... f5 {[%clk
0:02:03.3]} 21. Nc2 {[%clk 0:01:23.5]} 21... a5 {[%clk 0:01:52.6]} 22. Re2
{[%clk 0:01:19.7]} 22... Qc7 {[%clk 0:01:50]} 23. Rde1 {[%clk 0:01:18.1]} 23...
Bf6 {[%clk 0:01:49.1]} 24. Bg3 {[%clk 0:01:12.1]} 24... Rc8 {[%clk 0:01:48.6]}
25. Na3 {[%clk 0:01:00.3]} 25... Qb6 {[%clk 0:01:41.1]} 26. Qd3 {[%clk
0:00:56.4]} 26... b4 {[%clk 0:01:39.8]} 27. cxb4 {[%clk 0:00:41.2]} 27... Qxd4+
{[%clk 0:01:30.8]} 28. Qxd4 {[%clk 0:00:39.3]} 28... Bxd4+ {[%clk 0:01:31.7]}
29. Kh2 {[%clk 0:00:36.6]} 29... axb4 {[%clk 0:01:31.4]} 30. Nb5 {[%clk
0:00:33.9]} 30... Bf6 {[%clk 0:01:30.3]} 31. Na7 {[%clk 0:00:30.5]} 31... R6c7
{[%clk 0:01:28.5]} 32. Nxc8 {[%clk 0:00:30.4]} 32... Rxc8 {[%clk 0:01:29.2]} 33.
Bf2 {[%clk 0:00:24.1]} 33... Rc4 {[%clk 0:01:27.8]} 34. Rd2 {[%clk 0:00:19.8]}
34... Rxf4 {[%clk 0:01:24.7]} 35. Red1 {[%clk 0:00:11.7]} 35... Rc4 {[%clk
0:01:21]} 36. Bd4 {[%clk 0:00:11]} 36... e5 {[%clk 0:01:19.5]} 37. Bf2 {[%clk
0:00:08.6]} 37... d4 {[%clk 0:01:19.6]} 38. b3 {[%clk 0:00:08.9]} 38... Rc3
{[%clk 0:01:18.7]} 39. Rd3 {[%clk 0:00:08.9]} 39... Rc2 {[%clk 0:01:15.5]} 40.
R1d2 {[%clk 0:00:08.6]} 40... Rc3 {[%clk 0:01:09]} 41. Rxc3 {[%clk 0:00:05.1]}
41... bxc3 {[%clk 0:01:09.1]} 42. Rc2 {[%clk 0:00:03.6]} 42... e4 {[%clk
0:01:04.8]} 43. Bxd4 {[%clk 0:00:01.5]} 43... Bxd4 {[%clk 0:01:04.6]} 44. b4
{[%clk 0:00:00.9]} 44... Bc4 {[%clk 0:01:04.4]} 0-1

[Event "Late-Titled-Tuesday-Blitz-April-30-2024"]
[Site "Chess.com"]
[Date "2024.04.30"]
[Round "7"]
[White "djano"]
[Black "Supelyel"]
[Result "0-1"]
[WhiteElo "2586"]
[BlackElo "2400"]
[TimeControl "180+1"]
[EndTime "15:16:57 PDT"]
[Termination "Supelyel won by resignation"]

1. Nc3 {[%clk 0:03:00.9]} 1... d6 {[%clk 0:02:52.5]} 2. f4 {[%clk 0:03:00.2]}
2... Nd7 {[%clk 0:02:51.7]} 3. e4 {[%clk 0:03:00]} 3... e5 {[%clk 0:02:51.8]} 4.
Nf3 {[%clk 0:03:00.4]} 4... Ngf6 {[%clk 0:02:51.8]} 5. Bc4 {[%clk 0:02:59.9]}
5... Be7 {[%clk 0:02:51.9]} 6. d3 {[%clk 0:02:59.7]} 6... O-O {[%clk 0:02:52.1]}
7. O-O {[%clk 0:02:59.9]} 7... c6 {[%clk 0:02:52.7]} 8. Bb3 {[%clk 0:02:58.7]}
8... b5 {[%clk 0:02:51.4]} 9. fxe5 {[%clk 0:02:56.4]} 9... dxe5 {[%clk
0:02:51.5]} 10. Kh1 {[%clk 0:02:56.1]} 10... a5 {[%clk 0:02:50.9]} 11. a3 {[%clk
0:02:53.5]} 11... Qc7 {[%clk 0:02:45.6]} 12. Qe1 {[%clk 0:02:51.7]} 12... Nc5
{[%clk 0:02:45.1]} 13. Ba2 {[%clk 0:02:51.4]} 13... Bg4 {[%clk 0:02:35]} 14. Nh4
{[%clk 0:02:47.8]} 14... b4 {[%clk 0:02:22]} 15. Ne2 {[%clk 0:02:45.5]} 15...
Bxe2 {[%clk 0:02:17.4]} 16. Qxe2 {[%clk 0:02:45]} 16... Nfxe4 {[%clk 0:01:57.5]}
17. Nf5 {[%clk 0:02:45.1]} 17... Nf6 {[%clk 0:01:42.7]} 18. Bg5 {[%clk 0:02:44]}
18... Rae8 {[%clk 0:01:40]} 19. axb4 {[%clk 0:02:40.4]} 19... axb4 {[%clk
0:01:39.6]} 20. Nxe7+ {[%clk 0:02:24.4]} 20... Qxe7 {[%clk 0:01:38.4]} 21. Rxf6
{[%clk 0:02:20.7]} 21... gxf6 {[%clk 0:01:34.3]} 22. Bh6 {[%clk 0:02:13.6]}
22... Kh8 {[%clk 0:01:34.4]} 23. Bxf8 {[%clk 0:02:03.8]} 23... Rxf8 {[%clk
0:01:33.4]} 24. Bc4 {[%clk 0:02:04.4]} 24... Ne6 {[%clk 0:01:29.5]} 25. Qf2
{[%clk 0:02:00.6]} 25... Nd4 {[%clk 0:00:33.9]} 26. c3 {[%clk 0:02:00.5]} 26...
bxc3 {[%clk 0:00:31.1]} 27. bxc3 {[%clk 0:02:01.4]} 27... Nb5 {[%clk 0:00:24.5]}
28. h3 {[%clk 0:01:52.6]} 28... Rb8 {[%clk 0:00:19.1]} 29. Ra6 {[%clk
0:01:33.6]} 29... Qd6 {[%clk 0:00:14.7]} 30. Qf3 {[%clk 0:01:15.2]} 30... e4
{[%clk 0:00:11.2]} 31. Qxe4 {[%clk 0:01:09.2]} 31... Nxc3 {[%clk 0:00:11.5]} 32.
Qe1 {[%clk 0:00:42.7]} 32... Rb1 {[%clk 0:00:10.6]} 33. Qxb1 {[%clk 0:00:43.1]}
33... Nxb1 {[%clk 0:00:10.9]} 34. Ra7 {[%clk 0:00:43.7]} 34... Nd2 {[%clk
0:00:08.3]} 35. Bxf7 {[%clk 0:00:43.4]} 35... Nf1 {[%clk 0:00:08.3]} 36. Kg1
{[%clk 0:00:39]} 36... Qd4+ {[%clk 0:00:08.2]} 37. Kxf1 {[%clk 0:00:39.9]} 37...
Qxa7 {[%clk 0:00:08.8]} 0-1